bitfinex/quotes_BTCUSD_20251116
["timestamp","ask_amount","ask_price","bid_price","bid_amount"]
[1763254299926,0.00024596,95619.0,95618.0,0.23730839]
[1763254300594,0.00024596,95619.0,95618.0,0.20916563]
[1763254300970,0.01643596,95619.0,95618.0,0.20916563]
[1763254301371,0.01643596,95619.0,95617.0,0.02814276]
[1763254301606,0.01643596,95619.0,95618.0,0.20916563]
[1763254302126,0.01743596,95619.0,95618.0,0.20916563]
[1763254302487,0.00024596,95619.0,95618.0,0.21416563]
[1763254302691,0.00024596,95619.0,95618.0,0.24230839]
[1763254302932,0.00224596,95619.0,95618.0,0.24230839]
[1763254303143,0.00224596,95619.0,95618.0,0.21416563]
[1763254303342,0.00024596,95619.0,95618.0,0.21416563]
[1763254303546,0.00124596,95619.0,95618.0,0.21416563]
[1763254303719,0.00224596,95619.0,95618.0,0.21416563]
[1763254304169,0.00224596,95619.0,95617.0,0.20916707]
[1763254304369,0.00224596,95619.0,95616.0,0.20916937]
[1763254304572,0.22435823,95617.0,95615.0,0.02814276]
[1763254304775,0.01519,95617.0,95614.0,0.02814276]
[1763254305117,0.01519,95617.0,95615.0,0.23731403]
[1763254305546,0.01519,95617.0,95616.0,0.20917001]
[1763254305749,0.01619,95617.0,95616.0,0.20917001]
[1763254306391,0.01619,95617.0,95615.0,0.23731403]
[1763254306601,0.22435784,95617.0,95615.0,0.02814276]
[1763254306814,0.20917001,95616.0,95615.0,0.02814276]
[1763254306995,0.01719,95617.0,95615.0,0.02814276]
[1763254307227,0.01619,95617.0,95616.0,0.20917001]
[1763254307420,0.01619,95617.0,95614.0,0.02814276]
[1763254307570,0.22635813,95617.0,95614.0,0.23731593]
[1763254308002,0.22535813,95617.0,95614.0,0.23731593]
[1763254308348,0.01719,95617.0,95615.0,0.20917181]
[1763254308755,0.22535817,95617.0,95615.0,0.20917181]
[1763254308973,0.22635817,95617.0,95615.0,0.23731457]
[1763254309140,0.22535817,95617.0,95615.0,0.23731457]
[1763254309347,0.22435817,95617.0,95615.0,0.23731457]
[1763254309553,0.01719,95617.0,95616.0,0.20917001]
[1763254309725,0.002,95617.0,95616.0,0.20917001]
[1763254309933,0.001,95617.0,95616.0,0.20917001]
[1763254310309,0.002,95617.0,95616.0,0.23731277]
[1763254310764,0.001,95617.0,95616.0,0.20917001]
[1763254311368,0.002,95617.0,95616.0,0.23731277]
[1763254312337,0.002,95617.0,95616.0,0.20917001]
[1763254314392,0.002,95617.0,95616.0,0.25258875]
[1763254314612,0.002,95617.0,95616.0,0.33954122]
[1763254314775,0.002,95617.0,95616.0,0.3020039]
[1763254315255,0.001,95617.0,95616.0,0.3020039]
[1763254315488,0.00024596,95619.0,95618.0,0.30199952]
[1763254316683,0.00124596,95619.0,95618.0,0.30199952]
[1763254317468,0.00224596,95619.0,95618.0,0.30199952]
[1763254322537,0.00224596,95619.0,95618.0,0.04341874]
[1763254322729,0.02991596,95619.0,95618.0,0.09982008]
[1763254322931,0.23907941,95619.0,95618.0,0.05640134]
[1763254323111,0.2091722,95615.0,95613.0,0.05640134]
[1763254323269,0.20917876,95612.0,95611.0,0.05640134]
[1763254323472,0.22152313,95610.0,95609.0,0.05640134]
[1763254323677,0.20918794,95608.0,95606.0,0.05640134]
[1763254323879,0.22153626,95604.0,95602.0,0.05640134]
[1763254324181,0.20920502,95600.0,95599.0,0.05640134]
[1763254324398,0.20921158,95597.0,95596.0,0.05640134]
[1763254324609,0.22454158,95597.0,95596.0,0.05640134]
[1763254324820,0.01533,95597.0,95596.0,0.05640134]
[1763254325041,0.22454158,95597.0,95596.0,0.05640134]
[1763254325452,0.22454158,95597.0,95595.0,0.05640134]
[1763254325659,0.20921158,95597.0,95595.0,0.05640134]
[1763254325811,0.20921145,95598.0,95595.0,0.05640134]
[1763254325812,0.01533,95596.0,95595.0,0.05640134]
[1763254326439,0.01533,95596.0,95594.0,0.05640134]
[1763254327282,0.01533,95595.0,95594.0,0.26561949]
[1763254328256,0.01533,95595.0,95594.0,0.20921815]
[1763254329060,0.01633,95595.0,95594.0,0.20921815]
[1763254329259,0.01633,95595.0,95593.0,0.26562116]
[1763254329471,0.01733,95595.0,95593.0,0.20921982]
[1763254330022,0.01733,95595.0,95594.0,0.20921815]
[1763254330232,0.01633,95595.0,95594.0,0.20921815]
[1763254330375,0.01533,95595.0,95594.0,0.20921815]
[1763254330594,0.01533,95595.0,95592.0,0.05640134]
[1763254330595,0.01733,95595.0,95592.0,0.26562234]
[1763254330905,0.01633,95595.0,95592.0,0.05640134]
[1763254331134,0.20922252,95592.0,95591.0,0.04341874]
[1763254331533,0.22455252,95592.0,95591.0,0.04341874]
[1763254333042,0.20923128,95588.0,95586.0,0.05640134]
[1763254333244,0.01125,95585.0,95584.0,0.04456926]
[1763254333444,0.23581785,95585.0,95584.0,0.04456926]
[1763254333649,0.02658,95585.0,95584.0,0.2538093]
[1763254333848,0.02658,95585.0,95584.0,0.29134227]
[1763254334251,0.02658,95585.0,95584.0,0.29147766]
[1763254334458,0.20921391,95596.0,95584.0,0.08223762]
[1763254334650,0.20922283,95592.0,95590.0,0.0281489]
[1763254334826,0.20922471,95591.0,95590.0,0.0281489]
[1763254335030,0.22455471,95591.0,95590.0,0.0281489]
[1763254335457,0.2092269,95590.0,95589.0,0.0281489]
[1763254335712,0.2245569,95590.0,95589.0,0.0281489]
[1763254336540,0.2245569,95590.0,95584.0,0.21052523]
[1763254336541,0.20922909,95589.0,95588.0,0.0281489]
[1763254336958,0.01533,95589.0,95588.0,0.23738018]
[1763254337250,0.01533,95589.0,95588.0,0.20923128]
[1763254337526,0.01533,95589.0,95588.0,0.23737774]
[1763254337724,0.01633,95589.0,95588.0,0.02814646]
[1763254338096,0.22555909,95589.0,95588.0,0.02814646]
[1763254338309,0.22655909,95589.0,95588.0,0.02814646]
[1763254338646,0.01733,95589.0,95588.0,0.02814646]
[1763254339295,0.01733,95589.0,95588.0,0.20923128]
[1763254340492,0.01733,95589.0,95587.0,0.23737945]
[1763254340695,0.01533,95588.0,95587.0,0.02814646]
[1763254341273,0.01533,95588.0,95587.0,0.23737993]
[1763254342340,0.01633,95588.0,95587.0,0.23737993]
[1763254342776,0.01733,95588.0,95587.0,0.02814646]
[1763254342991,0.22656128,95588.0,95587.0,0.02814646]
[1763254343830,0.01733,95588.0,95587.0,0.23737993]
[1763254345406,0.01733,95588.0,95587.0,0.20923347]
[1763254346018,0.01733,95588.0,95587.0,0.23735279]
[1763254346262,0.22656128,95588.0,95587.0,0.02811932]
[1763254346465,0.20923347,95587.0,95584.0,0.00128591]
[1763254346678,0.20923599,95586.0,95584.0,0.00128591]
[1763254347323,0.20923359,95587.0,95584.0,0.21052533]
[1763254347538,0.21023359,95587.0,95585.0,0.20923784]
[1763254347950,0.20923666,95586.0,95584.0,0.00128591]
[1763254348360,0.001,95586.0,95584.0,0.24805843]
[1763254348563,0.20923673,95586.0,95584.0,0.03881888]
[1763254348773,0.20923766,95587.0,95584.0,0.24805712]
[1763254348971,0.21023766,95587.0,95584.0,0.24805712]
[1763254349188,0.001,95586.0,95585.0,0.20923785]
[1763254349319,0.001,95586.0,95585.0,0.24677082]
[1763254349516,0.01533,95588.0,95586.0,0.20923414]
[1763254349753,0.001,95587.0,95586.0,0.20923414]
[1763254350363,0.01533,95588.0,95586.0,0.20923414]
[1763254350563,0.22456225,95588.0,95585.0,0.24677037]
[1763254350781,0.22556225,95588.0,95585.0,0.24677037]
[1763254351211,0.01633,95588.0,95587.0,0.20923347]
[1763254351654,0.01633,95588.0,95587.0,0.24676644]
[1763254352332,0.01633,95588.0,95587.0,0.20923347]
[1763254352492,0.01733,95588.0,95587.0,0.20923347]
[1763254352694,0.01633,95588.0,95587.0,0.20923347]
[1763254352970,0.01733,95588.0,95587.0,0.20923347]
[1763254353452,0.01733,95588.0,95585.0,0.26563503]
[1763254353654,0.22656312,95588.0,95585.0,0.26563503]
[1763254353866,0.22495566,95586.0,95585.0,0.05640134]
[1763254354932,0.22595566,95586.0,95585.0,0.05640134]
[1763254355153,0.01672,95586.0,95585.0,0.05640134]
[1763254355367,0.01672,95586.0,95585.0,0.26563919]
[1763254355936,0.01772,95586.0,95585.0,0.26563919]
[1763254358318,0.01772,95586.0,95585.0,0.20923785]
[1763254360471,0.002,95586.0,95585.0,0.20923785]
[1763254361475,0.01772,95586.0,95585.0,0.20923785]
[1763254362904,0.002,95586.0,95585.0,0.20923785]
[1763254364780,0.01772,95586.0,95584.0,0.00128591]
[1763254365012,0.22695603,95586.0,95584.0,0.00128591]
[1763254365556,0.20923785,95585.0,95584.0,0.00128591]
[1763254366628,0.001,95585.0,95584.0,0.00128591]
[1763254367747,0.002,95585.0,95584.0,0.00128591]
[1763254368543,0.21123785,95585.0,95584.0,0.00128591]
[1763254369410,0.01772,95585.0,95584.0,0.00128591]
[1763254369635,0.22695785,95585.0,95584.0,0.00128591]
[1763254370438,0.01772,95585.0,95584.0,0.00128591]
[1763254371161,0.002,95585.0,95584.0,0.00128591]
[1763254371535,0.01772,95585.0,95584.0,0.00128591]
[1763254372318,0.22695785,95585.0,95584.0,0.00128591]
[1763254377642,0.01772,95585.0,95584.0,0.00128591]
[1763254377976,0.002,95585.0,95584.0,0.00128591]
[1763254379236,0.21123785,95585.0,95584.0,0.00128591]
[1763254380051,0.002,95585.0,95584.0,0.00128591]
[1763254380231,0.002,95585.0,95584.0,0.21052595]
[1763254381362,0.002,95585.0,95584.0,0.00128591]
[1763254381571,0.01413,95585.0,95584.0,0.21052595]
[1763254383203,0.002,95585.0,95584.0,0.21052595]
[1763254383401,0.002,95585.0,95584.0,0.25394469]
[1763254384201,0.001,95585.0,95584.0,0.25394469]
[1763254384480,0.20921183,95597.0,95594.0,0.20921615]
[1763254384709,0.20921158,95597.0,95596.0,0.03761828]
[1763254385100,0.20921142,95598.0,95596.0,0.03761828]
[1763254385313,0.20921158,95597.0,95596.0,0.03761828]
[1763254385733,0.22496158,95597.0,95596.0,0.03761828]
[1763254386798,0.22596158,95597.0,95596.0,0.03761828]
[1763254387180,0.22696158,95597.0,95596.0,0.03761828]
[1763254388292,0.002,95597.0,95596.0,0.03761828]
[1763254388519,0.002,95597.0,95596.0,0.24683205]
[1763254389185,0.002,95597.0,95596.0,0.03761828]
[1763254389328,0.21121158,95597.0,95596.0,0.03761828]
[1763254390383,0.22696158,95597.0,95596.0,0.03761828]
[1763254391216,0.20921377,95596.0,95595.0,0.03761828]
[1763254391631,0.22496377,95596.0,95595.0,0.03761828]
[1763254391831,0.22496377,95596.0,95589.0,0.20922828]
[1763254391832,0.20921815,95594.0,95593.0,0.03761828]
[1763254392035,0.20922034,95593.0,95592.0,0.03761828]
[1763254392473,0.22497034,95593.0,95592.0,0.03761828]
[1763254392876,0.2092269,95590.0,95589.0,0.03761828]
[1763254393236,0.2246769,95590.0,95589.0,0.03761828]
[1763254394023,0.20923785,95585.0,95584.0,0.03890419]
[1763254394236,0.23637785,95585.0,95584.0,0.00128591]
[1763254394874,0.2678079,95585.0,95584.0,0.00128591]
[1763254395826,0.2678079,95585.0,95584.0,0.00328591]
[1763254396668,0.2513579,95585.0,95584.0,0.00528591]
[1763254396807,0.2668079,95585.0,95584.0,0.00528591]
[1763254402688,0.2678079,95585.0,95584.0,0.00528591]
[1763254403174,0.03143005,95585.0,95584.0,0.00528591]
[1763254403388,0.03143005,95585.0,95584.0,0.21452595]
[1763254404071,0.01169,95588.0,95587.0,0.20923347]
[1763254404455,0.02714,95588.0,95587.0,0.20923347]
[1763254405316,0.02714,95588.0,95587.0,0.21123347]
[1763254406218,0.02714,95588.0,95587.0,0.21323347]
[1763254406862,0.01169,95588.0,95587.0,0.21323347]
[1763254408073,0.23637128,95588.0,95587.0,0.004]
[1763254408452,0.23637128,95588.0,95587.0,0.21323347]
[1763254408453,0.02714,95588.0,95587.0,0.21323347]
[1763254409173,0.23637128,95588.0,95587.0,0.004]
[1763254409726,0.02714,95588.0,95587.0,0.004]
[1763254410848,0.02714,95588.0,95587.0,0.21323347]
[1763254415383,0.02714,95588.0,95587.0,0.004]
[1763254415612,0.23637128,95588.0,95587.0,0.004]
[1763254416130,0.02714,95588.0,95587.0,0.004]
[1763254416336,0.02714,95588.0,95587.0,0.21323347]
[1763254418632,0.23637128,95588.0,95587.0,0.004]
[1763254419422,0.02714,95588.0,95587.0,0.21323347]
[1763254421551,0.01169,95598.0,95588.0,0.00675]
[1763254421767,0.01169,95598.0,95594.0,0.20921753]
[1763254421970,0.20921545,95596.0,95590.0,0.02815528]
[1763254422443,0.03596,95598.0,95590.0,0.02815528]
[1763254422556,0.20921864,95594.0,95591.0,0.20922382]
[1763254422765,0.2092177,95595.0,95591.0,0.20922268]
[1763254423502,0.20921872,95594.0,95592.0,0.20922206]
[1763254423715,0.2092177,95595.0,95592.0,0.20922206]
[1763254425213,0.2102177,95595.0,95592.0,0.20922206]
[1763254425430,0.2112177,95595.0,95592.0,0.20922206]
[1763254425632,0.001,95595.0,95590.0,0.23738181]
[1763254425936,0.2092224,95593.0,95590.0,0.23738181]
[1763254426768,0.001,95595.0,95590.0,0.02815528]
[1763254427019,0.19969471,95591.0,95590.0,0.02815528]
[1763254427172,0.21535471,95591.0,95590.0,0.02815528]
[1763254427598,0.20922775,95590.0,95587.0,0.2092334]
[1763254427795,0.20922775,95590.0,95587.0,0.04341874]
[1763254428169,0.20922697,95590.0,95588.0,0.20923106]
[1763254428384,0.0271,95591.0,95588.0,0.20923106]
[1763254428580,0.0281,95591.0,95589.0,0.20922902]
[1763254428785,0.23632497,95591.0,95589.0,0.20922902]
[1763254429354,0.21122701,95590.0,95588.0,0.20923106]
[1763254429559,0.20923088,95589.0,95587.0,0.04341874]
[1763254430143,0.20923128,95588.0,95587.0,0.04341874]
[1763254430347,0.20923128,95588.0,95587.0,0.08103702]
[1763254430978,0.0291,95591.0,95587.0,0.08103702]
[1763254431173,0.0281,95591.0,95587.0,0.08103702]
[1763254431391,0.20923128,95588.0,95587.0,0.08103702]
[1763254431678,0.21023128,95588.0,95587.0,0.08103702]
[1763254432036,0.20923128,95588.0,95587.0,0.08103702]
[1763254432233,0.20923566,95586.0,95585.0,0.04341874]
[1763254433504,0.002,95588.0,95585.0,0.25265659]
[1763254433712,0.002,95588.0,95587.0,0.04341874]
[1763254434016,0.001,95588.0,95587.0,0.04341874]
[1763254434210,0.21023128,95588.0,95587.0,0.04341874]
[1763254434917,0.21123128,95588.0,95587.0,0.04341874]
[1763254435143,0.21023128,95588.0,95587.0,0.04341874]
[1763254436129,0.21123128,95588.0,95587.0,0.04341874]
[1763254436574,0.20923566,95586.0,95585.0,0.04341874]
[1763254437788,0.001,95588.0,95587.0,0.25265221]
[1763254437993,0.20922757,95590.0,95587.0,0.25265221]
[1763254438173,0.20922757,95590.0,95589.0,0.03756326]
[1763254439267,0.21122757,95590.0,95589.0,0.03756326]
[1763254439674,0.21022757,95590.0,95589.0,0.03756326]
[1763254439878,0.21122757,95590.0,95589.0,0.03756326]
[1763254440362,0.21022757,95590.0,95589.0,0.03756326]
[1763254440628,0.20923128,95588.0,95587.0,0.080982]
[1763254441696,0.22584128,95588.0,95587.0,0.080982]
[1763254441906,0.22684128,95588.0,95587.0,0.080982]
[1763254442330,0.22684128,95588.0,95587.0,0.04341874]
[1763254442331,0.22784128,95588.0,95587.0,0.04341874]
[1763254442548,0.20923785,95585.0,95584.0,0.00128591]
[1763254442752,0.23834785,95585.0,95584.0,0.00128591]
[1763254443824,0.23834785,95585.0,95584.0,0.00328591]
[1763254444504,0.02911,95585.0,95584.0,0.00328591]
[1763254444722,0.02911,95585.0,95584.0,0.21452595]
[1763254445154,0.02911,95585.0,95584.0,0.00528591]
[1763254445552,0.23834785,95585.0,95584.0,0.00528591]
[1763254446057,0.02911,95585.0,95584.0,0.00528591]
[1763254446520,0.02911,95585.0,95584.0,0.21452595]
[1763254446932,0.2092269,95590.0,95587.0,0.20923303]
[1763254447138,0.01144,95596.0,95589.0,0.20922714]
[1763254447315,0.01144,95596.0,95591.0,0.02817837]
[1763254447521,0.20921787,95595.0,95591.0,0.23740252]
[1763254447922,0.01144,95596.0,95592.0,0.2092223]
[1763254448106,0.22065403,95596.0,95592.0,0.2092223]
[1763254448444,0.20921678,95595.0,95592.0,0.2092223]
[1763254448689,0.22065403,95596.0,95592.0,0.2092223]
[1763254449053,0.22065403,95596.0,95592.0,0.2112223]
[1763254449448,0.22065403,95596.0,95593.0,0.20922026]
[1763254450215,0.01661,95594.0,95592.0,0.002]
[1763254450418,0.01661,95594.0,95592.0,0.004]
[1763254450559,0.01661,95594.0,95592.0,0.21322178]
[1763254450760,0.01661,95594.0,95592.0,0.20922178]
[1763254450972,0.01661,95594.0,95593.0,0.002]
[1763254451212,0.01661,95594.0,95593.0,0.004]
[1763254451457,0.22582815,95594.0,95593.0,0.002]
[1763254451635,0.20922034,95593.0,95592.0,0.02817837]
[1763254451840,0.22583034,95593.0,95592.0,0.02817837]
[1763254452354,0.22583034,95593.0,95592.0,0.03017837]
[1763254452990,0.22583034,95593.0,95592.0,0.02817837]
[1763254453194,0.01661,95593.0,95592.0,0.03017837]
[1763254453397,0.01661,95593.0,95592.0,0.23940089]
[1763254453604,0.01144,95596.0,95593.0,0.209219]
[1763254453802,0.22065436,95596.0,95592.0,0.03017837]
[1763254453981,0.20922034,95593.0,95592.0,0.03217837]
[1763254454371,0.20921837,95594.0,95592.0,0.03017837]
[1763254454575,0.20922008,95595.0,95592.0,0.23739906]
[1763254454796,0.20922008,95595.0,95593.0,0.002]
[1763254454972,0.20921815,95594.0,95593.0,0.03017837]
[1763254455178,0.20921815,95594.0,95593.0,0.02817837]
[1763254455601,0.22542815,95594.0,95593.0,0.02817837]
[1763254455835,0.03142353,95605.0,95597.0,0.20921158]
[1763254456068,0.2091894,95608.0,95605.0,0.20919359]
[1763254456186,0.01225,95609.0,95601.0,0.02819119]
[1763254456387,0.01225,95609.0,95608.0,0.20918751]
[1763254457847,0.01225,95609.0,95608.0,0.21118751]
[1763254458048,0.01225,95609.0,95608.0,0.21318751]
[1763254458974,0.01225,95609.0,95608.0,0.21118751]
[1763254459185,0.01225,95609.0,95608.0,0.24132575]
[1763254460000,0.01225,95609.0,95608.0,0.03213824]
[1763254460185,0.23764532,95609.0,95608.0,0.03213824]
[1763254460393,0.0993085,95613.0,95608.0,0.004]
[1763254460681,0.01225,95609.0,95608.0,0.004]
[1763254461384,0.01225,95609.0,95608.0,0.21118751]
[1763254461602,0.23764532,95609.0,95608.0,0.004]
[1763254461811,0.02846,95609.0,95608.0,0.004]
[1763254462425,0.02846,95609.0,95608.0,0.21318751]
[1763254463185,0.02846,95609.0,95608.0,0.21118751]
[1763254463797,0.02846,95609.0,95608.0,0.21318751]
[1763254463798,0.01225,95609.0,95608.0,0.21318751]
[1763254463981,0.0993085,95613.0,95612.0,0.20917876]
[1763254465194,0.0993085,95613.0,95612.0,0.21117876]
[1763254465397,0.0993085,95613.0,95612.0,0.21317876]
[1763254467760,0.0002,95620.0,95612.0,0.004]
[1763254467989,0.0002,95620.0,95618.0,0.20916563]
[1763254468633,0.0002,95620.0,95618.0,0.21591563]
[1763254469261,0.00029106,95619.0,95618.0,0.21591563]
[1763254469694,0.00029106,95619.0,95618.0,0.21791563]
[1763254470462,0.00029106,95619.0,95618.0,0.21991563]
[1763254471963,0.00029106,95619.0,95618.0,0.004]
[1763254471964,0.22525451,95619.0,95618.0,0.004]
[1763254472718,0.22525451,95619.0,95618.0,0.002]
[1763254473039,0.22525451,95619.0,95610.0,0.02813824]
[1763254473040,0.20916799,95617.0,95610.0,0.23731923]
[1763254473404,0.20916751,95618.0,95615.0,0.20917206]
[1763254473850,0.20917033,95616.0,95612.0,0.20917876]
[1763254474026,0.20916829,95617.0,95612.0,0.20917876]
[1763254474239,0.20916569,95618.0,95615.0,0.20917166]
[1763254474873,0.20916569,95618.0,95614.0,0.20917294]
[1763254475079,0.20916854,95617.0,95615.0,0.20917211]
[1763254475280,0.20916907,95617.0,95613.0,0.20917631]
[1763254475481,0.20916907,95617.0,95615.0,0.002]
[1763254475818,0.20916907,95617.0,95615.0,0.003]
[1763254475970,0.20916907,95617.0,95615.0,0.001]
[1763254476344,0.20916907,95617.0,95615.0,0.002]
[1763254476555,0.22525888,95619.0,95616.0,0.20916971]
[1763254476736,0.01609106,95619.0,95615.0,0.002]
[1763254476941,0.20916563,95618.0,95615.0,0.002]
[1763254477162,0.20916563,95618.0,95615.0,0.21117219]
[1763254477365,0.20916563,95618.0,95615.0,0.20917219]
[1763254477565,0.20916563,95618.0,95616.0,0.20916976]
[1763254478006,0.2252587,95619.0,95616.0,0.20916976]
[1763254478195,0.01609106,95619.0,95615.0,0.21017219]
[1763254478445,0.01609106,95619.0,95615.0,0.001]
[1763254478446,0.20917,95617.0,95615.0,0.001]
[1763254478627,0.20917,95617.0,95616.0,0.001]
[1763254478851,0.20916782,95617.0,95616.0,0.001]
[1763254479061,0.20916782,95617.0,95616.0,0.002]
[1763254479303,0.20916682,95618.0,95615.0,0.20917171]
[1763254479521,0.01609106,95619.0,95617.0,0.209166]
[1763254480444,0.01609106,95619.0,95618.0,0.20916563]
[1763254480946,0.01609106,95619.0,95616.0,0.002]
[1763254481155,0.01609106,95619.0,95618.0,0.20916563]
[1763254481328,0.00029106,95619.0,95618.0,0.20916563]
[1763254481915,0.00029106,95619.0,95618.0,0.21016563]
[1763254482733,0.00029106,95619.0,95618.0,0.21116563]
[1763254483149,0.00029106,95619.0,95618.0,0.21016563]
[1763254483357,0.00029106,95619.0,95618.0,0.23830387]
[1763254483559,0.00029106,95619.0,95618.0,0.24030387]
[1763254483758,0.00029106,95619.0,95618.0,0.23930387]
[1763254484246,0.00029106,95619.0,95618.0,0.21216563]
[1763254485996,0.00029106,95619.0,95618.0,0.35607396]
[1763254486403,0.00029106,95619.0,95618.0,0.31849952]
[1763254486811,0.00029106,95619.0,95618.0,0.30499952]
[1763254487453,0.00029106,95619.0,95618.0,0.30399952]
[1763254487662,0.00029106,95619.0,95618.0,0.30199952]
[1763254488070,0.00129106,95619.0,95618.0,0.30199952]
[1763254492356,0.00129106,95619.0,95618.0,0.35842695]
[1763254493788,0.00029106,95619.0,95618.0,0.35842695]
[1763254494089,0.00129106,95619.0,95618.0,0.35842695]
[1763254494294,0.00129106,95619.0,95618.0,0.37192695]
[1763254494501,0.00029106,95619.0,95618.0,0.37192695]
[1763254494907,0.00129106,95619.0,95618.0,0.37192695]
[1763254495327,0.00029106,95619.0,95618.0,0.37192695]
[1763254495539,0.00129106,95619.0,95618.0,0.37192695]
[1763254495745,0.00129106,95619.0,95618.0,0.35842695]
[1763254495955,0.20561522,95637.0,95633.0,0.2091307]
[1763254496169,0.20566033,95637.0,95636.0,0.00675]
[1763254496871,0.20566033,95637.0,95632.0,0.2091329]
[1763254496872,0.2091276,95636.0,95632.0,0.2091329]
[1763254497110,0.0993085,95633.0,95632.0,0.2091329]
[1763254498456,4.511e-05,95637.0,95630.0,0.02814616]
[1763254498672,4.511e-05,95637.0,95636.0,0.20912627]
[1763254499454,4.511e-05,95637.0,95634.0,0.20912926]
[1763254499852,0.20917078,95637.0,95634.0,0.20912926]
[1763254500164,0.20917078,95637.0,95630.0,0.23828509]
[1763254500362,4.511e-05,95637.0,95636.0,0.001]
[1763254500586,0.20913349,95633.0,95630.0,0.23828509]
[1763254500794,0.20913349,95633.0,95630.0,0.23728509]
[1763254500997,0.20913349,95633.0,95630.0,0.02814616]
[1763254501320,0.20912845,95635.0,95630.0,0.02814616]
[1763254501519,0.20913501,95632.0,95630.0,0.02814616]
[1763254501727,0.0993085,95633.0,95632.0,0.20913501]
[1763254502232,0.09969102,95633.0,95632.0,0.20913501]
[1763254503020,0.09969102,95633.0,95631.0,0.20913608]
[1763254503227,4.511e-05,95637.0,95630.0,0.03014616]
[1763254503432,4.511e-05,95637.0,95636.0,0.20912627]
[1763254504176,4.511e-05,95637.0,95635.0,0.04341874]
[1763254504314,4.511e-05,95637.0,95635.0,0.25254688]
[1763254504505,4.511e-05,95637.0,95636.0,0.20912627]
[1763254504911,4.511e-05,95637.0,95636.0,0.21112627]
[1763254506114,4.511e-05,95637.0,95636.0,0.21012627]
[1763254506352,4.511e-05,95637.0,95636.0,0.21112627]
[1763254506530,4.511e-05,95637.0,95636.0,0.21012627]
[1763254506744,4.511e-05,95637.0,95636.0,0.001]
[1763254506945,0.22557919,95637.0,95636.0,0.001]
[1763254507471,0.22557919,95637.0,95636.0,0.002]
[1763254507655,0.22557919,95637.0,95636.0,0.001]
[1763254507857,0.20913283,95633.0,95632.0,0.08094418]
[1763254508070,0.23734283,95633.0,95632.0,0.08094418]
[1763254509509,0.20913501,95632.0,95631.0,0.08094418]
[1763254509914,0.22554501,95632.0,95631.0,0.08094418]
[1763254510321,0.22554501,95632.0,95631.0,0.04341874]
[1763254510834,0.22554501,95632.0,95631.0,0.04441874]
[1763254511036,0.22554501,95632.0,95631.0,0.04541874]
[1763254512404,0.01641,95632.0,95631.0,0.04541874]
[1763254512649,0.22554501,95632.0,95631.0,0.04541874]
[1763254515449,0.22554501,95632.0,95631.0,0.002]
[1763254516344,0.2091697,95637.0,95631.0,0.002]
[1763254516531,0.2091697,95637.0,95635.0,0.02815641]
[1763254516733,0.20912627,95636.0,95635.0,0.02815641]
[1763254516962,0.22565074,95636.0,95635.0,0.02815641]
[1763254518879,0.22565074,95636.0,95635.0,0.02915641]
[1763254519297,0.22565074,95636.0,95635.0,0.001]
[1763254519499,0.22565074,95636.0,95635.0,0.002]
[1763254521602,0.257064,95636.0,95635.0,0.002]
[1763254548450,0.27668083,95636.0,95635.0,0.002]
[1763254550570,0.22565074,95636.0,95635.0,0.002]
[1763254551582,0.01652447,95636.0,95635.0,0.002]
[1763254552636,0.22565074,95636.0,95635.0,0.002]
[1763254560680,0.22565074,95636.0,95635.0,0.001]
[1763254561520,0.20913283,95633.0,95632.0,0.02816635]
[1763254561751,0.22432283,95633.0,95632.0,0.02816635]
[1763254563189,4.511e-05,95637.0,95632.0,0.23730079]
[1763254563362,0.03140866,95633.0,95632.0,0.02816635]
[1763254563615,0.03140866,95633.0,95632.0,0.0775815]
[1763254563823,0.03140866,95633.0,95632.0,0.02816635]
[1763254564259,0.24054149,95633.0,95632.0,0.02816635]
[1763254566848,0.24092401,95633.0,95632.0,0.02816635]
[1763254567063,0.03179118,95633.0,95632.0,0.23730136]
[1763254568270,0.03179118,95633.0,95632.0,0.02816635]
[1763254568693,0.00038252,95633.0,95632.0,0.2807201]
[1763254568993,0.00038252,95633.0,95632.0,0.3019689]
[1763254569526,0.00038252,95633.0,95632.0,0.3154689]
[1763254570389,0.00038252,95633.0,95632.0,0.3019689]
[1763254572032,0.00038252,95633.0,95632.0,0.3154689]
[1763254572628,0.00038252,95633.0,95632.0,0.3019689]
[1763254572847,0.00038252,95633.0,95632.0,0.3154689]
[1763254573450,0.00038252,95633.0,95632.0,0.3019689]
[1763254576590,0.00038252,95633.0,95632.0,0.3154689]
[1763254577207,0.00038252,95633.0,95632.0,0.09283389]
[1763254577491,0.00038252,95633.0,95632.0,0.3019689]
[1763254581297,0.00038252,95633.0,95632.0,0.3154689]
[1763254581965,0.00038252,95633.0,95632.0,0.3019689]
[1763254583324,0.00038252,95633.0,95632.0,0.3154689]
[1763254584863,0.00038252,95633.0,95632.0,0.3019689]
[1763254593207,0.00038252,95633.0,95632.0,0.35839633]
[1763254595765,0.00038252,95633.0,95632.0,0.32447899]
[1763254601714,0.00038252,95633.0,95632.0,0.33797899]
[1763254602289,0.00038252,95633.0,95632.0,0.32447899]
[1763254605207,0.00038252,95633.0,95632.0,0.33797899]
[1763254606109,0.00038252,95633.0,95632.0,0.32447899]
[1763254612499,0.00038252,95633.0,95632.0,0.27506384]
[1763254612941,0.00038252,95633.0,95632.0,0.06592883]
[1763254613167,0.00038252,95633.0,95632.0,0.27506384]
[1763254613382,0.22564535,95633.0,95632.0,0.02251009]
[1763254613793,0.31452448,95633.0,95632.0,0.02251009]
[1763254614009,0.2091372,95631.0,95630.0,0.05633409]
[1763254614454,0.2252672,95631.0,95630.0,0.05633409]
[1763254614657,0.20914376,95628.0,95627.0,0.05633409]
[1763254615070,0.23767376,95628.0,95627.0,0.05633409]
[1763254615454,0.20914595,95627.0,95626.0,0.05633409]
[1763254615866,0.22527595,95627.0,95626.0,0.05633409]
[1763254616221,0.20914813,95626.0,95625.0,0.09975283]
[1763254616652,0.01613,95626.0,95625.0,0.09975283]
[1763254616855,0.01613,95626.0,95625.0,0.30890315]
[1763254618242,0.01613,95626.0,95625.0,0.25256906]
[1763254619529,0.01613,95626.0,95625.0,0.04341874]
[1763254619978,0.01113,95626.0,95625.0,0.04341874]
[1763254620198,0.22027813,95626.0,95625.0,0.04341874]
[1763254620925,0.01113,95626.0,95625.0,0.04341874]
[1763254621128,0.20915032,95625.0,95624.0,0.05633409]
[1763254621330,0.22528032,95625.0,95624.0,0.05633409]
[1763254621835,0.22528032,95625.0,95621.0,0.20915884]
[1763254621836,0.22528209,95625.0,95623.0,0.05633409]
[1763254622035,0.20915251,95624.0,95623.0,0.05633409]
[1763254622237,0.20915251,95624.0,95611.0,0.00675]
[1763254622238,0.2091547,95623.0,95621.0,0.05633409]